Cogmind - Beta 14 @@@ ROGUE MODE // 2024.11.13 @ 12:21:55 Player: MarKhan Result: Destroyed by G-47 Trooper with Particle Gun Performance ------------- Evolutions (0) 0 Regions Visited (1) 200 Robots Destroyed (17) 85 Value Destroyed (245) 245 Prototype IDs (1) 20 Alien Tech Used (0) 0 Bonus (-17) -17 TOTAL SCORE: 533 Bonus ------- Friendly Fire -17 Cogmind --------- Core Integrity 0/250 Matter 300/300 Energy 105/125 System Corruption 0% Temperature Hot (240) Movement Core (50) Location -10/Materials Parts ------- > --- POWER (1) -------- Light Ion Engine > --- PROPULSION (2) --- (None) > --- UTILITY (2) ------ Weight Redist. System Visual Processing Unit > --- WEAPON (2) ------- Advanced Beam Cannon Datajack > --- INVENTORY (5) ---- Weight Redist. System Mini Grenade Launcher Mini Grenade Launcher Mini Grenade Launcher Mini Grenade Launcher Peak State ------------ > --- POWER ------------ Light Ion Engine > --- PROPULSION ------- (None) > --- UTILITY ---------- Weight Redist. System Visual Processing Unit > --- WEAPON ----------- Advanced Beam Cannon Light Assault Rifle > --- INVENTORY -------- Weight Redist. System Mini Grenade Launcher Mini Grenade Launcher Mini Grenade Launcher Mini Grenade Launcher [Rating: 10] Favorites ----------- Power Light Ion Engine Engine Light Ion Engine Propulsion None Utility Seismic Detector Device Seismic Detector Processor Visual Processing Unit Weapon Small Laser Energy Gun Small Laser Energy Cannon Advanced Beam Cannon Ballistic Gun Light Assault Rifle Special Weapon Plasma Cutter Special Melee Weapon Datajack Build | -11 -10 ------- Run | Yrd Mat Slots Evolved . | . . Power . | . . Propulsion . | . . Utility . | . . Weapon . | . . Parts Attached 19 | 3 16 Power 1 | . 1 Engine 1 | . 1 Core . | . . Reactor . | . . Propulsion . | . . Treads . | . . Leg . | . . Wheel . | . . Hover . | . . Flight . | . . Utility 3 | 1 2 Device 2 | 1 1 Storage . | . . Processor 1 | . 1 Hackware . | . . Protection . | . . Artifact . | . . Weapon 15 | 2 13 Energy Gun 5 | 2 3 Energy Cannon 3 | . 3 Ballistic Gun 3 | . 3 Ballistic Cannon . | . . Launcher . | . . Special Weapon 3 | . 3 Impact Weapon . | . . Slashing Weapon . | . . Piercing Weapon . | . . Special Melee Weapon 1 | . 1 Unidentified Prototypes 1 | . 1 Parts Lost 1 | . 1 Power . | . . Propulsion . | . . Utility . | . . Weapon 1 | . 1 Highest Loss Streak 1 | . 1 To Critical Strikes . | . . Average Slot Usage (%) 44 | . 44 Engine 5 | . 5 Device 11 | . 11 Processor 5 | . 5 Energy Gun 8 | . 8 Energy Cannon 5 | . 5 Ballistic Gun 4 | . 4 Special Weapon 1 | . 1 Special Melee Weapon 2 | . 2 Peak Build Rating 10 | 3 10 Average Rating 4 | 1 4 On Entrance 1 | . 2 Naked Turns . | . . Heaviest Build 8 | 3 8 Greatest Support 9 | 3 9 Greatest Overweight (x) 1 | . 1 Average Overweight (x) . | . . Largest Inventory Capacity 5 | 5 5 Average Capacity 5 | 5 5 Most Carried 5 | 4 5 Average Carried 4 | 1 4 Final Capacity 5 | 5 5 Final Carried 5 | 4 5 Class Distribution -------------------- 100% | Mutant Dominant Class ---------------- Mutant | -10/Materials Resources | -11 -10 ----------- Run | Yrd Mat Matter Collected 417 | 230 187 Remotely . | . . Salvage Created 552 | 185 367 Parts 34 | 11 23 Haulers Intercepted 2 | . 2 Recyclers Shooed . | . . Parts Field Recycled . | . . Retrieved Matter . | . . Parts Self-Destructed . | . . Prevented . | . . Kills | -11 -10 ------- Run | Yrd Mat Combat Hostiles Destroyed 4 | . 4 Guns 3 | . 3 Cannons 1 | . 1 Classes Destroyed 7 | 2 5 Worker 2 | . 2 Tunneler 6 | 5 1 Hauler 2 | . 2 Recycler 1 | 1 . Operator 1 | . 1 Watcher 1 | . 1 Grunt 4 | . 4 Best Kill Streak 6 | 6 5 Combat Bots Only 2 | . 2 Max Kills in Single Turn 1 | 1 1 Gunslinging . | . . Exploded . | . . Melee . | . . Uniques/NPCs Destroyed . | . . Combat | -11 -10 -------- Run | Yrd Mat Hostile Shots Fired 47 | . 47 Missed 8 | . 8 Damage Taken 538 | . 538 Core 257 | . 257 Absorbed by Shields . | . . Core Remaining (%) 100 | 100 . Volleys Fired 101 | 13 88 Largest 2 | 2 2 Hottest 110 | 90 110 Shots Fired 146 | 26 120 Gun 99 | 26 73 Cannon 40 | . 40 Launcher . | . . Special 7 | . 7 Kinetic 27 | . 27 Thermal 119 | 26 93 Explosive . | . . Electromagnetic . | . . Robot Hit Streak 12 | 11 12 Robot Miss Streak 5 | 2 5 Penetration Max . | . . Secondary Targets 1 | . 1 Max Gunslinging Chain 1 | . 1 Shots Hit Robots 84 | 19 65 Core Hits 29 | 7 22 Critical Kills . | . . Critical Parts Destroyed . | . . Critical Strikes 4 | 2 2 Burn 4 | 2 2 Melee Attacks 1 | . 1 Impact . | . . Slashing . | . . Piercing . | . . Sneak Attacks 1 | . 1 Combat Hostiles . | . . Follow-up Attacks . | . . Damage Inflicted 1109 | 228 881 Guns 651 | 228 423 Cannons 458 | . 458 Explosions . | . . Melee . | . . Ramming . | . . Kinetic 131 | . 131 Thermal 978 | 228 750 Explosive . | . . Electromagnetic . | . . Impact . | . . Slashing . | . . Piercing . | . . Highest Corruption . | . . Average Corruption . | . . Corruption Purged . | . . Corruption Blocked . | . . Overload Shots . | . . Overflow Damage 5 | . 5 Projectiles 5 | . 5 Explosions . | . . Melee . | . . Knockbacks . | . . Impact . | . . Kinetic . | . . Secondary . | . . Self-Inflicted Damage . | . . Shots . | . . Rammed . | . . Targets Rammed . | . . Kicked . | . . Crushed . | . . Highest Temperature 231 | 100 231 Average Temperature 61 | 47 65 Received Heat Transfer 306 | . 306 Siege Activations . | . . Robots Corrupted . | . . Combat Hostiles . | . . Parts Fried . | . . Impact Corruptions . | . . Robots Melted . | . . Combat Hostiles . | . . Parts Melted 4 | 3 1 Heat Transferred 2549 | 755 1794 Parts Sabotaged . | . . Parts Stolen . | . . Parts Stripped . | . . Power Chain Reactions . | . . Alert | -11 -10 ------- Run | Yrd Mat Peak Influence 224 | 30 224 Initial 19 | . 19 Average 117 | 11 127 Maximum Alert Level 1 | . 1 Low Security (%) 84 | 100 82 Level 1 15 | . 17 Level 2 . | . . Level 3 . | . . Level 4 . | . . Level 5 . | . . High Security . | . . Max Security . | . . Squads Dispatched 2 | . 2 Investigation 1 | . 1 Extermination . | . . Reinforcement 1 | . 1 Assault . | . . Garrison . | . . Intercept . | . . Searches Triggered . | . . Construction Impeded . | . . Haulers Reinforced . | . . Active Scanning Responses . | . . Cargo Convoy Interrupts . | . . Stealth | -11 -10 --------- Run | Yrd Mat Distress Signals 3 | . 3 Communications Jammed . | . . Distress Signals . | . . Times Spotted 23 | . 23 Peak Tracking Total 4 | . 4 Tactical Retreats 5 | . 5 Traps | -11 -10 ------- Run | Yrd Mat Traps Triggered 1 | . 1 Indirectly . | . . Trap Hack Attempts . | . . Triggered . | . . Disarmed . | . . Reprogrammed . | . . Reused . | . . Traps Extracted . | . . Installed . | . . Triggered . | . . Machines | -11 -10 ---------- Run | Yrd Mat Machines Disabled 1 | . 1 Max in Single Turn 1 | . 1 Machines Repaired . | . . Machines Dismantled . | . . Machines Sabotaged . | . . Overloaded Fab Kills . | . . Hacking | -11 -10 --------- Run | Yrd Mat Machines Accessed 9 | . 9 Terminals 7 | . 7 Fabricators . | . . Repair Stations . | . . Recycling Units 2 | . 2 Scanalyzers . | . . Garrison Access . | . . Total Hacks 29 | . 29 Successful 14 | . 14 Failed 15 | . 15 Catastrophic 2 | . 2 Database Lockouts . | . . Manual 24 | . 24 Terminals 25 | . 25 Fabricators . | . . Repair Stations . | . . Recycling Units 4 | . 4 Scanalyzers . | . . Garrison Access . | . . Terminal Hacks 1 | . 1 Terminal Index 1 | . 1 Fabricator Hacks . | . . Repair Station Hacks . | . . Recycling Unit Hacks 1 | . 1 Retrieve Components 1 | . 1 Scanalyzer . | . . Garrison Access Hacks . | . . Unauthorized Hacks 12 | . 12 Terminals 9 | . 9 Assimilate 1 | . 1 Botnet 2 | . 2 Operators 1 | . 1 Skim 5 | . 5 Fabricators . | . . Repair Stations . | . . Recycling Units 3 | . 3 Reject 2 | . 2 Recyclers 1 | . 1 Scanalyzers . | . . Garrison Access . | . . Data Cores Recovered . | . . Used . | . . Hacking Detections 9 | . 9 Full Trace Events . | . . Feedback Events . | . . Feedback Blocked . | . . Robot Schematics Acquired . | . . Robots Built . | . . Authchips . | . . Time . | . . Total Robot Build Rating . | . . Part Schematics Acquired . | . . Parts Built . | . . Authchips . | . . Time . | . . Total Part Build Rating . | . . Parts Repaired . | . . Time . | . . Parts Recycled . | . . Recycled Matter . | . . Retrieved Matter . | . . Retrieved Components 10 | . 10 Parts Scanalyzed . | . . Part Schematics Acquired . | . . Parts Damaged . | . . Bothacking | -11 -10 ------------ Run | Yrd Mat Used RIF Installer . | . . Robots Hacked 1 | . 1 Non-combat 1 | . 1 Combat . | . . Robot Hacks Applied 1 | . 1 no_distress 1 | . 1 Relay Couplers Released . | . . Fabnet Peak Effective % . | . . Robots Rewired . | . . Allies Hacked . | . . Hacks Repelled . | . . Allies | -11 -10 -------- Run | Yrd Mat Total Allies 1 | . 1 Largest Group 1 | . 1 Highest-Rated Group 10 | . 10 Highest-Rated Ally 10 | . 10 Total Orders . | . . Ally Attacks . | . . Total Damage . | . . Kills . | . . Allies Corrupted . | . . Allies Melted . | . . Intel | -11 -10 ------- Run | Yrd Mat Robot Analysis Total . | . . Derelict Logs Recovered . | . . Drone Launches . | . . Drone Recoveries . | . . Exploration | -11 -10 ------------- Run | Yrd Mat Turns Passed 854 | 78 776 Spaces Moved 1005 | 40 965 Core 1005 | 40 965 Treads . | . . Legs . | . . Wheels . | . . Hover . | . . Flight . | . . Fastest Speed 50 | 50 50 Average Speed 52 | 50 52 Slowest Speed 100 | 50 100 Overloaded Moves . | . . Propulsion Burnouts . | . . Robots Hopped . | . . Cave-ins Triggered . | . . Exploration Rate (%) 47 | 4 90 Regions Visited 1 Branch Regions . Pre-discovered Areas . | . . Known Exits Taken . | . . Unknown Exits Taken 1 | 1 . Scrap Searched . | . . Spaces Dug 3 | . 3 Terrain Destroyed 3 | . 3 Melee . | . . Projectile 3 | . 3 AOE . | . . Terrain Rammed . | . . Walls Destroyed . | . . Machines Disabled . | . . Actions | -11 -10 --------- Run | Yrd Mat Total 1187 | 70 1117 Wait 34 | 9 25 Move 1004 | 39 965 Hop . | . . Pick Up 10 | 4 6 Fast Attach 14 | 3 11 Attach 4 | . 4 Detach 4 | 1 3 Swap 1 | . 1 Drop 14 | 1 13 Fire 101 | 13 88 Melee 1 | . 1 Ram . | . . Kick . | . . Crush . | . . Escape Stasis . | . . Rewire . | . . Trap . | . . Miscellaneous . | . . Route ------- -11/Scrapyard -10/Materials (discovered 4 exits: [*Mat x3] / [*Min]) History --------- Turn | Location | Event 3 | -11/Scrapyard | Discovered new exit (range 16) 79 | -11/Scrapyard | Entered Materials 225 | -10/Materials | Discovered new exit (range 15) 302 | -10/Materials | Build established: Mutant 482 | -10/Materials | Discovered new exit (range 6) 546 | -10/Materials | Core integrity fell below 50% 644 | -10/Materials | Discovered new exit (range 18) 808 | -10/Materials | Core integrity fell below 20% 827 | -10/Materials | Discovered new exit (range 3) 843 | -10/Materials | Learned Storage garrison access intel 855 | -10/Materials | Destroyed by G-47 Trooper with Particle Gun Last Messages --------------- 00738_ Destroyed Hover Unit. 00749_ R-06 Scavenger collects Aluminum Leg. 00756_ Extracted 4 matter. 00763_ K-01 Serf cleans the Electrolysis Chamber. 00773_ Connecting with Terminal... >>Trojan(Skim) Trojan loaded successfully. Testing... Terminal linked with 4 systems. Skimming routine engaged. Thanks from A0-MCA. 00809_ G-34 Mercenary heat short circuits Ion Engine. 00827_ EXIT=FOUND 00832_ Sneak attack on U-05 Engineer. 00832_ Jacked U-05 Engineer... >>no_distress Distress signal routine blocked. 00843_ >> SKIM: Stored Storage garrison access intel. Map ----- +----------------------------------------------------+ | ????????????######?????????????????? | | ???????????? [ #?????????????????? | | ??????????? #?????????????????? | | ########### #?????????????????? | | % + #?????????????????? | | ######### # #?????????????????? | | ????????# # #?????????????????? | | ????????# #?######?????????????????? | | ##??????# #????????????????????????? | | #?????# #????????????????????????? | | #????## ##??#######??????????????? | | #????# #### #??????????????? | | #????# T + """ #??????????????? | | #????# #### """ #??????????????? | | #????#####??# """ #??????????????? | | ###???????????# #??????????????? | | #???????????# """ #####??????????? | | #???????????# """ # #??????????? | | #???????????# """ # < #??????????? | | #?????####### # #??????????? | | #?????# # + #??????????? | | #?????# # # #??????????? | | #?????# """ # # #??????????? | | #?????# """ ##+#### #??????????? | | ####### """ # #?# ###########? | | ### # + #?# #@ ! #? | | # """ # #?# # ] #? | | # """ # ### # #? | | # """ # #gg #? | | ### # # + """ """ #? | | ???# ## + "" # """ """ #? | | ???# ## # "T # """ """ #? | | ???# ######## "" # #? | | #### #??????# ###########? | | ## ######## #??????????? | | #??????????? | | #??????????? | | """ """ """ #??????????? | | # """ """ """ #?????????? | | " # """ """ """ #?????????? | | ""# ! #?????????? | | ### #?????????? | | # """ """ #?????????? | | # !![ """ """ ##?????????? | | # !![ """ """ #??????????? | | r ![[ #??????????? | | ""# #??????????? | | Y"# #??????????? | | ""# ####+########## +??????????? | | # #?????????????? #??????????? | +----------------------------------------------------+ Best States ------------- Heat Dissipation 25 Energy Generation 10 Energy Capacity 125 Matter Stores 300 Matter Capacity 300 Sight Range 18 Terrain Scan Density 10 Additional Mass Support 6 Evasion (%) 50 Item Schematics ----------------- None Robot Schematics ------------------ None Fabricated ------------ Nothing Alien Tech Used ----------------- None Achievements -------------- None Challenges ------------ None Game ------ Seed FocalMetafiberCompanion Manual? 0 Play Time 00:18:56 Cumulative 96.2 hours Start 2024.11.13 @ 12:07:42 End 2024.11.13 @ 12:21:55 Sessions 1 Manual Loads 0 Difficulty Rogue Special Mode None Game No. 96 Rogue 96 Adventurer 0 Explorer 0 Win Type - Total 2 Types 2/0/0/0/0/0/0/0/0 Lore% 51 Gallery% 51 Achievement% 43 Wizard Run 0 Options --------- Layout 1 ASCII 0 Keyboard 1 Movement Arrows Keybinds 0 Fullscreen 2 Font 24/Smallcaps Map View 50x35 Zoom Use 0% Tactical HUD 1 Map Filters NONE Filters NONE Steam 1 RUN: 7bfc556c-e0cc-4d94-991c-737fe1cfb1f6